Cogmind - Beta 13 @@@ ROGUE MODE // 2024.05.17 @ 22:03:04 Player: Bace Troncons Result: Destroyed by Y-72 Warden with Quantum Rifle Performance ------------- Evolutions (7) 3500 Regions Visited (10) 2000 Robots Destroyed (43) 215 Value Destroyed (1319) 1319 Prototype IDs (13) 260 Alien Tech Used (0) 0 Bonus (722) 722 TOTAL SCORE: 8016 Bonus ------- Follower Combat Kills 722 Cogmind --------- Core Integrity 0/1300 Matter 300/300 Energy 99/100 System Corruption 20% Temperature Cool (9) Movement Core (50) Location -3/Research Parts ------- > --- POWER (2) -------- (None) > --- PROPULSION (6) --- (None) > --- UTILITY (10) ----- (None) > --- WEAPON (3) ------- (None) > --- INVENTORY (5) ---- Machine Analyzer Advanced ECM Suite Antimissile System Makeshift Spear Makeshift Spear Peak State ------------ > --- POWER ------------ Antimatter-Particle Reactor > --- PROPULSION ------- VTOL Module Nuclear Pulse Thruster Experimental Cesium-ion Thruster Q-thruster Impulse Thruster Array > --- UTILITY ---------- Armored Scrap Engine Machine Analyzer Advanced Signal Interpreter Improved Melee Analysis Suite Core Analyzer Stasis Canceller Hacking Suite System Shield Improved System Restoration Module > --- WEAPON ----------- Autogun Plasma Lance Enhanced Force Lance > --- INVENTORY -------- Machine Analyzer Advanced ECM Suite Antimissile System Makeshift Spear Makeshift Spear [Rating: 113] Favorites ----------- Power Constructs Engine Light Ion Engine Power Core Light Nuclear Core Reactor Constructs Propulsion Improved Flight Unit Treads Constructs Flight Unit Improved Flight Unit Utility Machine Analyzer Device Armored Scrap Engine Storage Small Storage Unit Processor Machine Analyzer Hackware Hacking Suite Protection Improved Light Armor Plating Weapon Autogun Energy Gun Medium Laser Ballistic Gun Autogun Ballistic Cannon Constructs Special Weapon Advanced Remote Datajack Impact Weapon Thunder Hammer Slashing Weapon Segregator Piercing Weapon Makeshift Spear Build | -11 -10 -10 -7 -5 -5 -5 -4 -4 -4 -3 ------- Run | Yrd Mat Sub Rec Fac Was Fac Fac Upp Upp Res Slots Evolved 14 | . . . . 10 . . 2 . . 2 Power 1 | . . . . 1 . . . . . . Propulsion 4 | . . . . 3 . . 1 . . . Utility 8 | . . . . 6 . . 1 . . 1 Weapon 1 | . . . . . . . . . . 1 Parts Attached 60 | 5 5 2 4 10 2 8 2 8 . 14 Power 5 | 1 . 1 2 . . . . 1 . . Engine 4 | 1 . 1 2 . . . . . . . Core 1 | . . . . . . . . 1 . . Reactor . | . . . . . . . . . . . Propulsion 13 | 2 1 1 . 2 1 1 1 1 . 3 Treads 2 | 2 . . . . . . . . . . Leg . | . . . . . . . . . . . Wheel . | . . . . . . . . . . . Hover . | . . . . . . . . . . . Flight 11 | . 1 1 . 2 1 1 1 1 . 3 Utility 22 | 1 . . 1 6 1 4 1 1 . 7 Device 10 | . . . 1 3 1 1 . . . 4 Storage 1 | 1 . . . . . . . . . . Processor 6 | . . . . 1 . 2 . 1 . 2 Hackware 3 | . . . . . . 1 1 . . 1 Protection 2 | . . . . 2 . . . . . . Artifact . | . . . . . . . . . . . Weapon 20 | 1 4 . 1 2 . 3 . 5 . 4 Energy Gun 1 | . 1 . . . . . . . . . Energy Cannon . | . . . . . . . . . . . Ballistic Gun 7 | 1 3 . . . . . . 2 . 1 Ballistic Cannon . | . . . . . . . . . . . Launcher . | . . . . . . . . . . . Special Weapon 1 | . . . . . . . . . . 1 Impact Weapon 1 | . . . . 1 . . . . . . Slashing Weapon 6 | . . . 1 1 . 3 . 1 . . Piercing Weapon 4 | . . . . . . . . 2 . 2 Special Melee Weapon . | . . . . . . . . . . . Unidentified Prototypes 7 | . 1 . . 2 1 . . . . 3 Corrupted Parts 1 | . 1 . . . . . . . . . System Corruption 9 | . 9 . . . . . . . . . Parts Lost 39 | . 1 . . . . . . 12 . 26 Power 8 | . 1 . . . . . . 5 . 2 Propulsion 13 | . . . . . . . . 2 . 11 Utility 9 | . . . . . . . . 2 . 7 Weapon 9 | . . . . . . . . 3 . 6 Highest Loss Streak 12 | . 1 . . . . . . 4 . 12 To Critical Strikes . | . . . . . . . . . . . Average Slot Usage (%) 78 | . 72 85 72 59 79 81 83 86 84 69 Engine 2 | . 2 14 8 3 8 5 2 . . . Core 2 | . . . . . . . 2 4 5 1 Treads 4 | . 20 13 . . . . . . . . Flight 22 | . 7 14 28 20 28 29 31 30 31 14 Device 9 | . . . 13 13 17 13 10 10 10 11 Storage 2 | . 14 14 . . . . . . . . Processor 8 | . . . . 4 5 7 10 12 15 17 Hackware 5 | . . . . . . 4 9 10 10 8 Protection 4 | . . . . 8 11 11 10 5 . . Ballistic Gun 7 | . 22 28 14 . . . . 4 . 2 Slashing Weapon 3 | . . . 6 5 5 4 5 4 . . Piercing Weapon 1 | . . . . . . . . . 10 7 Naked Turns 11 | . . . . . . . . . . 11 Heaviest Build 38 | 9 11 14 10 19 23 23 22 33 12 38 Greatest Support 40 | 40 40 20 10 20 26 27 33 33 28 39 Greatest Overweight (x) 10 | . 2 1 . 1 . . . 1 . 10 Average Overweight (x) . | . . . . . . . . . . . Largest Inventory Capacity 8 | 8 8 8 5 5 5 5 5 5 5 5 Average Capacity 5 | 7 8 8 5 5 5 5 5 5 5 5 Most Carried 8 | 4 8 7 5 5 5 5 5 5 5 5 Average Carried 4 | 2 6 7 4 2 2 4 3 3 5 3 Final Capacity 8 | 8 8 8 5 5 5 5 5 5 5 5 Final Carried 8 | 4 8 7 5 2 5 5 5 5 5 5 Scrap Engine Consumption 158 | . . . 28 15 26 42 3 19 . 25 Constructs Created 12 | . . . . 1 . . . 5 . 6 Constructs Modified 22 | . . . . . 2 2 3 10 . 5 Class Distribution -------------------- 32% | Mutant 25% | Scavenger-Mutant 14% | Sprinter 9% | Hacker-Sprinter 6% | Hacker-Gladiator 6% | Scavenger-Sprinter 4% | Hacker-Mutant Dominant Class ---------------- Mutant | -10/Materials Mutant | -10/Subcaves Mutant | -7/Recycling Sprinter | -5/Factory Sprinter | -5/Waste Sprinter | -5/Factory Hacker-Sprinter | -4/Factory Scavenger-Mutant | -4/Upper Caves Hacker-Gladiator | -4/Upper Caves Scavenger-Sprinter | -3/Research Resources | -11 -10 -10 -7 -5 -5 -5 -4 -4 -4 -3 ----------- Run | Yrd Mat Sub Rec Fac Was Fac Fac Upp Upp Res Matter Collected 984 | 160 214 16 132 106 20 80 20 117 . 119 Remotely . | . . . . . . . . . . . Salvage Created 2089 | . 415 29 539 97 . 191 30 163 . 625 Parts 116 | . 31 1 20 7 . 11 3 10 . 33 Haulers Intercepted 1 | . . . . . . . . . . 1 Recyclers Shooed 5 | . . . 2 . . 1 . . . 2 Parts Field Recycled . | . . . . . . . . . . . Retrieved Matter . | . . . . . . . . . . . Parts Self-Destructed 13 | . . 4 . . . . . 9 . . Prevented . | . . . . . . . . . . . Kills | -11 -10 -10 -7 -5 -5 -5 -4 -4 -4 -3 ------- Run | Yrd Mat Sub Rec Fac Was Fac Fac Upp Upp Res Combat Hostiles Destroyed 25 | . 9 2 . . . . . 7 . 7 Melee 9 | . . . . . . . . 2 . 7 Guns 14 | . 7 2 . . . . . 5 . . AOE 2 | . 2 . . . . . . . . . Classes Destroyed 11 | . 5 . . 2 . . . . . 4 Worker 2 | . . . . 2 . . . . . . Tunneler 1 | . . . . . . . . . . 1 Hauler 1 | . . . . . . . . . . 1 Recycler 6 | . 1 . 4 . . 1 . . . . Mechanic 2 | . . . . 1 . . . . . 1 Operator 3 | . 1 . . . . 2 . . . . Watcher 3 | . 2 . . . . . 1 . . . Swarmer 15 | . 3 2 . . . . . 7 . 3 Grunt 6 | . 6 . . . . . . . . . Sentry 2 | . . . . . . . . . . 2 Programmer 2 | . . . . . . . . . . 2 Best Kill Streak 5 | . 5 2 4 2 . 2 1 2 . 2 Combat Bots Only 4 | . 4 2 . . . . . 2 . 2 Max Kills in Single Turn 4 | . 4 1 1 1 . 1 1 1 . 1 Gunslinging . | . . . . . . . . . . . Exploded 2 | . 2 . . . . . . . . . Melee 1 | . . . . . . . . 1 . 1 Uniques/NPCs Destroyed . | . . . . . . . . . . . Combat | -11 -10 -10 -7 -5 -5 -5 -4 -4 -4 -3 -------- Run | Yrd Mat Sub Rec Fac Was Fac Fac Upp Upp Res Hostile Shots Fired 525 | . 53 73 18 . 1 . . 105 1 274 Missed 212 | . 15 31 12 . 1 . . 38 1 114 Damage Taken 5580 | . 457 305 45 . 22 . . 1137 . 3614 Core 1658 | . 62 61 28 . 20 . . 169 . 1318 Absorbed by Shields . | . . . . . . . . . . . Redirected to Shielding 60 | . . . . . . . . 60 . . Ignored by Resistances 45 | . . . . . . . . . . 45 Regen/Repaired (Parts) 232 | . . . . . 2 . . 36 . 194 Core Remaining (%) 80 | 100 . . 39 . . 98 . . 85 . Volleys Fired 62 | . 33 7 . . . . . 18 . 4 Largest 2 | . 2 2 . . . . . 1 . 1 Hottest 84 | . 70 46 . . . . . 23 . 84 Shots Fired 97 | . 61 13 1 . . . . 18 . 4 Gun 97 | . 61 13 1 . . . . 18 . 4 Cannon . | . . . . . . . . . . . Launcher . | . . . . . . . . . . . Special . | . . . . . . . . . . . Kinetic 73 | . 39 13 1 . . . . 18 . 2 Thermal 22 | . 22 . . . . . . . . . Explosive . | . . . . . . . . . . . Electromagnetic 2 | . . . . . . . . . . 2 Robot Hit Streak 10 | . 10 9 . . . . . 6 . . Robot Miss Streak 3 | . 3 2 . . . . . 2 . . Penetration Max . | . . . . . . . . . . . Secondary Targets . | . . . . . . . . . . . Shots Hit Robots 119 | . 42 10 14 4 1 4 1 16 . 27 Core Hits 57 | . 23 2 6 2 . 2 1 9 . 12 Critical Kills . | . . . . . . . . . . . Critical Parts Destroyed . | . . . . . . . . . . . Critical Strikes 5 | . 1 . . . . . . . . 4 Burn 1 | . 1 . . . . . . . . . Impale 4 | . . . . . . . . . . 4 Melee Attacks 188 | . . . 15 15 1 28 2 36 . 91 Thermal 27 | . . . . . . . . 27 . . Impact . | . . . . . . . . . . . Slashing 66 | . . . 15 15 1 28 2 5 . . Piercing 95 | . . . . . . . . 4 . 91 Sneak Attacks 15 | . . . 3 3 . 2 1 . . 6 Combat Hostiles . | . . . . . . . . . . . Follow-up Attacks 5 | . . . . . . . . . . 5 Damage Inflicted 4699 | . 595 145 1249 413 29 419 102 297 . 1450 Guns 737 | . 439 145 . . . . . 153 . . Cannons . | . . . . . . . . . . . Explosions 156 | . 156 . . . . . . . . . Melee 3796 | . . . 1249 413 29 419 102 144 . 1440 Ramming 10 | . . . . . . . . . . 10 Kinetic 540 | . 242 145 . . . . . 153 . . Thermal 197 | . 197 . . . . . . . . . Explosive . | . . . . . . . . . . . Electromagnetic 156 | . 156 . . . . . . . . . Impact . | . . . . . . . . . . . Slashing 2356 | . . . 1249 413 29 419 102 144 . . Piercing 1440 | . . . . . . . . . . 1440 Highest Corruption 20 | . 9 9 9 . . . . . . 20 Average Corruption 8 | . 9 9 9 . . . . . . 8 Corruption Purged . | . . . . . . . . . . . Corruption Blocked . | . . . . . . . . . . . Effects 46 | . 17 6 12 . . . . . . 11 Message Errors 9 | . 4 . 3 . . . . . . 2 Matter Fused 14 | . 4 3 4 . . . . . . 3 Heat Flow Errors 6 | . 4 . . . . . . . . 2 Energy Discharges 5 | . 1 1 1 . . . . . . 2 Parts Rejected 2 | . . . . . . . . . . 2 Parts Fused 1 | . . . 1 . . . . . . . Data Loss (minor) 2 | . 2 . . . . . . . . . Data Loss (major) 3 | . . 1 2 . . . . . . . Misfires 1 | . . . 1 . . . . . . . Alerts 2 | . 2 . . . . . . . . . Weapon Failures 1 | . . 1 . . . . . . . . Overload Shots . | . . . . . . . . . . . Overflow Damage 725 | . . . 284 109 . 148 . 1 . 183 Projectiles . | . . . . . . . . . . . Explosions . | . . . . . . . . . . . Melee 725 | . . . 284 109 . 148 . 1 . 183 Knockbacks . | . . . . . . . . . . . Impact . | . . . . . . . . . . . Kinetic . | . . . . . . . . . . . Secondary . | . . . . . . . . . . . Self-Inflicted Damage 13 | . 13 . . . . . . . . . Shots 1 | . 1 . . . . . . . . . Rammed 1 | . . . . . . . . . . 1 Targets Rammed 1 | . . . . . . . . . . 1 Kicked . | . . . . . . . . . . . Crushed . | . . . . . . . . . . . Highest Temperature 415 | . 415 . . . . . 22 74 . 198 Average Temperature 123 | . 175 . . . . . 7 33 . 65 Received Heat Transfer 525 | . 234 144 12 . . . . 18 . 117 Effects 2 | . 2 . . . . . . . . . Interference 1 | . 1 . . . . . . . . . Damage (minor) 1 | . 1 . . . . . . . . . Siege Activations . | . . . . . . . . . . . Robots Corrupted . | . . . . . . . . . . . Combat Hostiles . | . . . . . . . . . . . Parts Fried 1 | . 1 . . . . . . . . . Impact Corruptions . | . . . . . . . . . . . Robots Melted . | . . . . . . . . . . . Combat Hostiles . | . . . . . . . . . . . Parts Melted . | . . . . . . . . . . . Heat Transferred 666 | . 666 . . . . . . . . . Parts Sabotaged . | . . . . . . . . . . . Parts Stolen . | . . . . . . . . . . . Parts Stripped . | . . . . . . . . . . . Power Chain Reactions . | . . . . . . . . . . . Alert | -11 -10 -10 -7 -5 -5 -5 -4 -4 -4 -3 ------- Run | Yrd Mat Sub Rec Fac Was Fac Fac Upp Upp Res Peak Influence 1215 | . 252 . 399 321 242 1215 606 . . 132 Initial 595 | . . . 322 267 112 169 595 . . 10 Average 237 | . 71 . 354 292 213 800 597 . . 44 Maximum Alert Level 4 | . 1 . 1 1 1 4 2 . . . Low Security (%) 58 | 100 96 . . . 30 5 . . . 100 Level 1 25 | . 3 . 100 100 69 2 . . . . Level 2 7 | . . . . . . 23 100 . . . Level 3 6 | . . . . . . 48 . . . . Level 4 2 | . . . . . . 20 . . . . Level 5 . | . . . . . . . . . . . High Security . | . . . . . . . . . . . Max Security . | . . . . . . . . . . . Squads Dispatched 11 | . 2 . . . . 6 . . . 3 Investigation 1 | . 1 . . . . . . . . . Extermination 3 | . . . . . . 1 . . . 2 Reinforcement 4 | . 1 . . . . 2 . . . 1 Assault 2 | . . . . . . 2 . . . . Garrison 1 | . . . . . . 1 . . . . Intercept . | . . . . . . . . . . . Searches Triggered . | . . . . . . . . . . . Construction Impeded 1 | . . . . . . . . . . 1 Haulers Reinforced . | . . . . . . . . . . . Active Scanning Responses . | . . . . . . . . . . . Cargo Convoy Interrupts . | . . . . . . . . . . . Stealth | -11 -10 -10 -7 -5 -5 -5 -4 -4 -4 -3 --------- Run | Yrd Mat Sub Rec Fac Was Fac Fac Upp Upp Res Distress Signals 3 | . 1 . . . . 1 . . . 1 Communications Jammed . | . . . . . . . . . . . Distress Signals . | . . . . . . . . . . . Times Spotted 123 | . 13 43 2 3 4 4 . 19 4 31 Peak Tracking Total 20 | . 5 6 2 1 3 5 . 10 5 20 Tactical Retreats 10 | . . 2 1 . . 1 . 3 . 3 Traps | -11 -10 -10 -7 -5 -5 -5 -4 -4 -4 -3 ------- Run | Yrd Mat Sub Rec Fac Was Fac Fac Upp Upp Res Traps Triggered 1 | . . . . 1 . . . . . . Indirectly . | . . . . . . . . . . . Trap Hack Attempts . | . . . . . . . . . . . Triggered . | . . . . . . . . . . . Disarmed . | . . . . . . . . . . . Reprogrammed . | . . . . . . . . . . . Reused . | . . . . . . . . . . . Traps Extracted . | . . . . . . . . . . . Installed . | . . . . . . . . . . . Triggered . | . . . . . . . . . . . Machines | -11 -10 -10 -7 -5 -5 -5 -4 -4 -4 -3 ---------- Run | Yrd Mat Sub Rec Fac Was Fac Fac Upp Upp Res Machines Disabled 8 | . 2 . . . . 6 . . . . Max in Single Turn 2 | . 2 . . . . 1 . . . . Garrison Access 1 | . . . . . . 1 . . . . Machines Repaired . | . . . . . . . . . . . Machines Dismantled . | . . . . . . . . . . . Machines Sabotaged . | . . . . . . . . . . . Overloaded Fab Kills . | . . . . . . . . . . . Hacking | -11 -10 -10 -7 -5 -5 -5 -4 -4 -4 -3 --------- Run | Yrd Mat Sub Rec Fac Was Fac Fac Upp Upp Res Machines Accessed 26 | . 4 1 9 5 . 3 1 1 . 2 Terminals 14 | . 2 . 5 3 . 2 1 . . 1 Fabricators . | . . . . . . . . . . . Repair Stations 1 | . 1 . . . . . . . . . Recycling Units 7 | . 1 . 4 1 . 1 . . . . Scanalyzers 2 | . . . . 1 . . . . . 1 Garrison Access . | . . . . . . . . . . . Total Hacks 59 | . 12 5 20 12 . 4 2 1 . 3 Successful 24 | . 5 5 4 4 . 4 1 1 . . Failed 35 | . 7 . 16 8 . . 1 . . 3 Catastrophic 6 | . 3 . . 1 . . . . . 2 Database Lockouts . | . . . . . . . . . . . Manual 6 | . . . . 1 . . 1 . . 4 Terminals 32 | . 7 . 10 8 . 3 2 . . 2 Fabricators . | . . . . . . . . . . . Repair Stations 2 | . 2 . . . . . . . . . Recycling Units 15 | . 3 . 10 1 . 1 . . . . Scanalyzers 4 | . . . . 3 . . . . . 1 Garrison Access . | . . . . . . . . . . . Terminal Hacks 17 | . 3 5 2 2 . 3 1 1 . . Record 8 | . . 5 1 1 . . 1 . . . Robot Schematic 1 | . . . 1 . . . . . . . Prototype ID Bank 1 | . 1 . . . . . . . . . Open Door 1 | . . . . . . . . 1 . . Emergency Access Points 1 | . . . . . . 1 . . . . Alert Level 1 | . . . . . . 1 . . . . Locate Traps 1 | . 1 . . . . . . . . . Dispatch Records 1 | . . . . . . 1 . . . . Zone Layout 2 | . 1 . . 1 . . . . . . Fabricator Hacks . | . . . . . . . . . . . Repair Station Hacks 1 | . 1 . . . . . . . . . Scan Component 1 | . 1 . . . . . . . . . Recycling Unit Hacks 4 | . 1 . 2 . . 1 . . . . Retrieve Components 4 | . 1 . 2 . . 1 . . . . Scanalyzer 2 | . . . . 2 . . . . . . Insert Component 1 | . . . . 1 . . . . . . Analyze 1 | . . . . 1 . . . . . . Garrison Access Hacks . | . . . . . . . . . . . Unauthorized Hacks . | . . . . . . . . . . . Terminals . | . . . . . . . . . . . Fabricators . | . . . . . . . . . . . Repair Stations . | . . . . . . . . . . . Recycling Units . | . . . . . . . . . . . Scanalyzers . | . . . . . . . . . . . Garrison Access . | . . . . . . . . . . . Data Cores Recovered . | . . . . . . . . . . . Used . | . . . . . . . . . . . Hacking Detections 22 | . 3 . 7 5 . 3 1 . . 3 Full Trace Events 3 | . 1 . 2 . . . . . . . Feedback Events . | . . . . . . . . . . . Feedback Blocked . | . . . . . . . . . . . Robot Schematics Acquired 1 | . . . 1 . . . . . . . Robots Built . | . . . . . . . . . . . Authchips . | . . . . . . . . . . . Time . | . . . . . . . . . . . Total Robot Build Rating . | . . . . . . . . . . . Part Schematics Acquired 1 | . . . . 1 . . . . . . Parts Built . | . . . . . . . . . . . Authchips . | . . . . . . . . . . . Time . | . . . . . . . . . . . Total Part Build Rating . | . . . . . . . . . . . Parts Repaired . | . . . . . . . . . . . Time . | . . . . . . . . . . . Parts Recycled . | . . . . . . . . . . . Recycled Matter . | . . . . . . . . . . . Retrieved Matter . | . . . . . . . . . . . Retrieved Components 14 | . 9 . 4 . . 1 . . . . Parts Scanalyzed 1 | . . . . 1 . . . . . . Part Schematics Acquired 1 | . . . . 1 . . . . . . Parts Damaged . | . . . . . . . . . . . Bothacking | -11 -10 -10 -7 -5 -5 -5 -4 -4 -4 -3 ------------ Run | Yrd Mat Sub Rec Fac Was Fac Fac Upp Upp Res Used RIF Installer . | . . . . . . . . . . . Robots Hacked . | . . . . . . . . . . . Non-combat . | . . . . . . . . . . . Combat . | . . . . . . . . . . . Robot Hacks Applied . | . . . . . . . . . . . Relay Couplers Released 1 | . . . . . . 1 . . . . Machine Destruction 1 | . . . . . . 1 . . . . Fabnet Peak Effective % . | . . . . . . . . . . . Robots Rewired . | . . . . . . . . . . . Allies Hacked . | . . . . . . . . . . . Hacks Repelled . | . . . . . . . . . . . Allies | -11 -10 -10 -7 -5 -5 -5 -4 -4 -4 -3 -------- Run | Yrd Mat Sub Rec Fac Was Fac Fac Upp Upp Res Total Allies 18 | . . . . . 18 . . . . . Largest Group 18 | . . . . . 18 16 4 4 . . Highest-Rated Group 656 | . . . . . 656 606 102 102 . . Highest-Rated Ally 50 | . . . . . 50 50 27 27 . . Total Orders . | . . . . . . . . . . . Ally Attacks 290 | . . . . . 161 124 . 5 . . Total Damage 8379 | . . . . . 5007 3329 . 43 . . Kills 32 | . . . . . 8 23 . 1 . . Allies Corrupted 5 | . . . . . . 5 . . . . Allies Melted . | . . . . . . . . . . . Intel | -11 -10 -10 -7 -5 -5 -5 -4 -4 -4 -3 ------- Run | Yrd Mat Sub Rec Fac Was Fac Fac Upp Upp Res Robot Analysis Total . | . . . . . . . . . . . Derelict Logs Recovered 3 | . . 2 . . . . . 1 . . Drone Launches . | . . . . . . . . . . . Drone Recoveries . | . . . . . . . . . . . Exploration | -11 -10 -10 -7 -5 -5 -5 -4 -4 -4 -3 ------------- Run | Yrd Mat Sub Rec Fac Was Fac Fac Upp Upp Res Turns Passed 5231 | 55 943 149 349 226 253 390 139 1963 9 755 Spaces Moved 3984 | 30 342 82 740 458 347 457 120 772 25 611 Core 52 | 3 . . . . . . . . . 49 Treads 342 | 27 198 69 . . . . . . . 48 Legs . | . . . . . . . . . . . Wheels . | . . . . . . . . . . . Hover . | . . . . . . . . . . . Flight 3590 | . 144 13 740 458 347 457 120 772 25 514 Fastest Speed 21 | 50 60 107 37 27 25 25 23 21 35 25 Average Speed 52 | 149 176 151 37 31 25 25 23 33 35 64 Slowest Speed 595 | 160 200 160 37 104 27 26 23 105 35 595 Overloaded Moves . | . . . . . . . . . . . Propulsion Burnouts . | . . . . . . . . . . . Robots Hopped 2 | . . . 2 . . . . . . . Cave-ins Triggered . | . . . . . . . . . . . Exploration Rate (%) 36 | 3 54 10 98 11 96 12 3 80 7 22 Regions Visited 10 Branch Regions 4 Pre-discovered Areas 1 | . . . . . . . . 1 . . Known Exits Taken . | . . . . . . . . . . . Unknown Exits Taken 8 | 1 1 1 1 . . 1 1 1 1 . Scrap Searched 2 | . . . . . . . . 2 . . Spaces Dug 56 | . . . . 8 . 17 1 2 . 28 Terrain Destroyed 56 | . . . . 8 . 17 1 2 . 28 Melee 56 | . . . . 8 . 17 1 2 . 28 Projectile . | . . . . . . . . . . . AOE . | . . . . . . . . . . . Terrain Rammed . | . . . . . . . . . . . Walls Destroyed . | . . . . . . . . . . . Machines Disabled . | . . . . . . . . . . . Actions | -11 -10 -10 -7 -5 -5 -5 -4 -4 -4 -3 --------- Run | Yrd Mat Sub Rec Fac Was Fac Fac Upp Upp Res Total 6739 | 38 633 93 785 512 511 676 226 2393 24 848 Wait 2391 | . 230 2 16 17 156 168 101 1558 . 143 Move 3971 | 29 341 81 735 458 346 456 119 771 24 611 Hop 2 | . . . 2 . . . . . . . Pick Up 33 | 4 12 . 3 4 . 5 2 1 . 2 Fast Attach 43 | 5 4 . 4 6 2 7 . 6 . 9 Attach 14 | . 1 2 . 4 . . 2 2 . 3 Detach 16 | . 1 1 1 2 4 1 . 2 . 4 Swap 3 | . . . . . . 1 . . . 2 Drop 38 | . 11 . 9 6 2 10 . . . . Fire 62 | . 33 7 . . . . . 18 . 4 Melee 165 | . . . 15 15 1 28 2 35 . 69 Ram . | . . . . . . . . . . . Kick . | . . . . . . . . . . . Crush 1 | . . . . . . . . . . 1 Escape Stasis . | . . . . . . . . . . . Rewire . | . . . . . . . . . . . Trap . | . . . . . . . . . . . Miscellaneous . | . . . . . . . . . . . Route ------- -11/Scrapyard -10/Materials (discovered 4 exits: [*Mat x2] / [*Min] / *Sub) -10/Subcaves -7/Recycling -5/Factory -5/Waste -5/Factory -4/Factory -4/Upper Caves -4/Upper Caves -3/Research History --------- Turn | Location | Event 21 | -11/Scrapyard | Discovered new exit (range 16) 56 | -11/Scrapyard | Entered Materials 302 | -10/Materials | Build established: Mutant 490 | -10/Materials | Discovered new exit (range 11) 562 | -10/Materials | Discovered new exit (range 14) 965 | -10/Materials | Discovered new exit (range 11) 991 | -10/Materials | Discovered new exit (range 5) 999 | -10/Materials | Entered Subcaves 1010 | -10/Subcaves | Learned Materials garrison access intel 1050 | -10/Subcaves | Visited Clippyterm 1080 | -10/Subcaves | Shifting Twisted Machinery released Flamer 1086 | -10/Subcaves | Shifting Twisted Machinery released Piercing Trap 1101 | -10/Subcaves | Discovered new exit (range 13) 1104 | -10/Subcaves | Learned location of 1 exit from Materials 1148 | -10/Subcaves | Entered Recycling 1150 | -7/Recycling | Found Scrap Engine 1221 | -7/Recycling | Core integrity fell below 50% 1411 | -7/Recycling | Discovered new exit (range 15) 1497 | -7/Recycling | Entered Factory 1497 | -5/Factory | Evolved 10 slots: Power x1, Propulsion x3, Utility x6 1648 | -5/Factory | Discovered new exit (range 16) 1723 | -5/Factory | Sucked down chute 1723 | -5/Factory | Entered Waste 1733 | -5/Waste | Spotted C-40 Crusher 1734 | -5/Waste | Spotted C-40 Crusher 1734 | -5/Waste | Spotted C-40 Crusher 1739 | -5/Waste | Warlord forces began an assault 1747 | -5/Waste | Allies destroyed C-40 Crusher 1785 | -5/Waste | Spotted C-40 Crusher 1807 | -5/Waste | Spotted C-40 Crusher 1811 | -5/Waste | Allies destroyed C-40 Crusher 1827 | -5/Waste | Spotted C-40 Crusher 1857 | -5/Waste | Discovered new exit (range 14) 1890 | -5/Waste | Build established: Sprinter 1976 | -5/Waste | Entered Factory 1976 | -5/Factory | Accompanied by 16 allies 1995 | -5/Factory | Garrison activated, responded to threat 2232 | -5/Factory | Discovered new exit (range 15) 2276 | -5/Factory | First assault squad dispatched 2366 | -5/Factory | Entered another Factory area 2366 | -4/Factory | Accompanied by 4 allies 2366 | -4/Factory | Evolved 2 slots: Propulsion x1, Utility x1 2439 | -4/Factory | Discovered new exit (range 6) 2505 | -4/Factory | Entered Upper Caves 2505 | -4/Upper Caves | Accompanied by 4 allies 2603 | -4/Upper Caves | Learned location of Quarantine (-3) 2682 | -4/Upper Caves | Build established: Hacker-Sprinter 2721 | -4/Upper Caves | Lost 4 allies 2748 | -4/Upper Caves | Lost 4 parts (2p1n1w) 3150 | -4/Upper Caves | Lost 4 parts (2p1n1w) 3401 | -4/Upper Caves | Build established: Scavenger-Mutant 4394 | -4/Upper Caves | Attracted the attention of an 0b10 checkpoint 4415 | -4/Upper Caves | Attracted the attention of an 0b10 outpost 4461 | -4/Upper Caves | Discovered new exit (range 8) 4468 | -4/Upper Caves | Entered another Upper Caves area 4476 | -4/Upper Caves | Discovered new exit (range 5) 4477 | -4/Upper Caves | Entered Research 4477 | -3/Research | Evolved 2 slots: Utility x1, Weapon x1 4717 | -3/Research | Spotted B-86 Titan 4731 | -3/Research | Found Enh. Force Lance 4790 | -3/Research | Build established: Scavenger-Sprinter 4850 | -3/Research | Found Prototype Device 4850 | -3/Research | Identified Exp. Thermal Defense Suite 4881 | -3/Research | Lost 9 parts (1p5n2u1w) 5120 | -3/Research | Build established: Hacker-Gladiator 5157 | -3/Research | Spotted B-86 Titan 5172 | -3/Research | System corruption reached 10% 5179 | -3/Research | Found Prototype Hackware 5179 | -3/Research | Identified Exp. Hacking Suite 5182 | -3/Research | Core integrity fell below 50% 5210 | -3/Research | Lost 12 parts (1p4n3u4w) 5221 | -3/Research | Released all parts (5) 5226 | -3/Research | Core integrity fell below 20% 5232 | -3/Research | Destroyed by Y-72 Warden with Quantum Rifle Last Messages --------------- 05210_ Door malfunctions. 05211_ System corrupted: Energy discharge (-37). [Achievement: Hunted] 05217_ Treaded XBT Exoskeleton destroyed. 05217_ Scrap Engine suffers catastophic network destabilization. 05217_ Hpw. Accelerated Linear Construct/C destroyed. 05218_ Penetrated by Slug. 05218_ Slug penetrates Wall. 05221_ Released Core Analyzer. 05221_ Released Machine Analyzer. 05221_ Released Imp. Melee Analysis Suite. 05221_ Released Adv. Signal Interpreter. 05221_ Released Exp. Hacking Suite. 05222_ Penetrated by Slug. 05224_ P-80 Master resets S-43 Plague, system corruption cleaned. 05225_ Penetrated by Slug. 05225_ Slug penetrates Wall. Map ----- +----------------------------------------------------+ | ??????????????# # #???????# #????????????? | | ??????????????# + / ??????# #????????????? | | ????????####### # # ????# #????????????? | | ????????# ## # ######### #???????????? | | ????????# #######?# ?????????? | | ????????# # #?# ?????????? | | ????????# # ### ?????????? | | ????????# + ??????????? | | ????????# # #######+###########???????????? | | ????????# # #?????? ????????????????????? | | ????????# ## ##??????? ????????????????#### | | ????????# ## #????"""? """??????????????? | | ????????####+## #????"""??""" ????????????? | | ???????????# #????"""??""" """????????? | | ???????????# #??????????????"""????????? | | ???????????# #??????????????"""????????????## | | ???????????# #????"""????????F"?????????????? | | ???????????# #????"""???????"""?????????????? | | ???????????# #????"""???????""??????????????? | | ???????????# #???????????????????????????#??? | | ???????????# #??????????????????????????????? | | ???????????# #####################??? ??????? | | ???????????# s ?????????? | | ???????????# ?????????? | | ???????????#### ?????????? | | ??????????????##"########@########???????????????? | | ?????????????? ?????? ?????????????????????? | | ????????????? ????# ???????????????????? | | ????????????# ""???# #??????????????"?"" | | ????????????# ""S???# #??????????????"R"" | | ????????????# ""????# ] Y#?????????????"""" | | ????????????# ????# =!!##????????????????? | | ????????????# ??????# =! #?????????????????? | | ????????????# ??????# !! #?????????????????? | | ????????????# ???????###########??????????? ?????? | | ?????????????#???????????????????????????????????? | | ?????????????????????????????????????????#???????? | | ?????????????????????????????????????????????????? | | ?????????????????????????????????????????????????? | | ??????????????????????????????????????????????"??? | | ??????????????????????????????????????????????""?? | | ??????????????????????????????????????????????G ?? | | ??????????????????????????????????????????????""?? | | ??????????????????????????????????????????????"? ? | | ????????????????????????????????????????#????????? | | ?????????????????????????????????????????????????? | | ????????????????????????????????????????#????????? | | ?????????????????????????????????????????????#???? | | ????????????????????????????????????#??#??#??????? | | ?????????????????????????????????????????????????? | +----------------------------------------------------+ Best States ------------- Heat Dissipation 46 Energy Generation 29 Energy Capacity 630 Matter Stores 300 Matter Capacity 300 Sight Range 20 Terrain Scan Range 20 Terrain Scan Density 10 ECM Strength 2 Armor Coverage 150 Resistance: TH 30 Utility Shielding 66 Evasion (%) 65 Melee Accuracy 6 Core Analysis 6 Recoil Reduction 2 Offensive Hacking 16 Defensive Hacking 10 Item Schematics ----------------- Imp. Assault Rifle | -5/Factory | Scanalyzed Robot Schematics ------------------ B-48 Gladiator | -7/Recycling | Hacked Fabricated ------------ Nothing Alien Tech Used ----------------- None Achievements -------------- Hunted Challenges ------------ None Game ------ Seed TitaniumDataClaymores Manual? 0 Play Time 01:10:00 Cumulative 76.3 hours Start 2024.05.17 @ 20:33:25 End 2024.05.17 @ 22:03:04 Sessions 1 Manual Loads 0 Difficulty Rogue Special Mode None Game No. 117 Rogue 117 Adventurer 0 Explorer 0 Win Type - Total 1 Types 1/0/0/0/0/0/0/0/0 Lore% 38 Gallery% 42 Achievement% 32 Wizard Run 0 Options --------- Layout 1 ASCII 0 Keyboard 1 Movement Numpad Keybinds 0 Fullscreen 1 Font 24/Smallcaps Map View 50x35 Zoom Use 0% Tactical HUD 1 Map Filters NONE Filters NONE Steam 1 RUN: 8c7f9629-f094-4401-9747-7059e2be8cc8